Cogmind - Beta 9.5 @@@ ROGUE MODE // 2020.04.04 @ 00:58:31 Player: IAMCRAIG Result: Destroyed by D-53 Grenadier with Mini Grenade Launcher Performance ------------- Evolutions (0) 0 Regions Visited (2) 400 Robots Destroyed (24) 120 Value Destroyed (433) 433 Prototype IDs (0) 0 Alien Tech Used (0) 0 Bonus (10) 10 TOTAL SCORE: 963 Bonus ------- High Alert Combat Kills 10 Cogmind --------- Core Integrity 0/250 Matter 151/300 Energy 100/100 System Corruption 0% Temperature Cool (0) Movement Treading (180) Ox1 Location -10/Mines Parts ------- > --- POWER (1) -------- (None) > --- PROPULSION (2) --- Light Treads > --- UTILITY (2) ------ High-capacity Storage Unit Targeting Computer > --- WEAPON (2) ------- Light Cannon Mini Grenade Launcher > --- INVENTORY (12) --- Ion Engine Large Storage Unit Improved Sensor Array Core Shielding Propulsion Shielding Utility Shielding Hacking Suite Light Cannon Mini Grenade Launcher Mini Grenade Launcher Mining Laser Peak State ------------ > --- POWER ------------ Light Ion Engine > --- PROPULSION ------- Wheel Wheel > --- UTILITY ---------- Large Storage Unit Targeting Computer > --- WEAPON ----------- Light Cannon Mini Grenade Launcher > --- INVENTORY -------- Ion Engine Light Treads Light Treads Compact Wheel Medium Storage Unit Weight Redist. System Improved Sensor Array Core Shielding Hacking Suite Light Cannon [Rating: 9] Favorites ----------- Power Light Ion Engine Engine Light Ion Engine Propulsion Wheel Treads Light Treads Wheel Wheel Utility Targeting Computer Device Sensor Array Storage High-capacity Storage Unit Processor Targeting Computer Protection Core Shielding Weapon Light Cannon Energy Gun Small Laser Ballistic Gun Light Assault Rifle Ballistic Cannon Light Cannon Launcher Mini Grenade Launcher Build | -11 -10 -10 ------- Run | Scr Mat Min Slots Evolved . | . . . Power . | . . . Propulsion . | . . . Utility . | . . . Weapon . | . . . Parts Attached 22 | 7 14 1 Power 3 | 1 2 . Engine 3 | 1 2 . Core . | . . . Reactor . | . . . Propulsion 6 | 3 2 1 Treads 2 | 1 . 1 Leg . | . . . Wheel 4 | 2 2 . Hover . | . . . Flight . | . . . Utility 7 | 1 6 . Device 1 | . 1 . Storage 4 | 1 3 . Processor 1 | . 1 . Hackware . | . . . Protection 1 | . 1 . Artifact . | . . . Weapon 6 | 2 4 . Energy Gun 1 | 1 . . Energy Cannon . | . . . Ballistic Gun 1 | 1 . . Ballistic Cannon 3 | . 3 . Launcher 1 | . 1 . Special Weapon . | . . . Impact Weapon . | . . . Slashing Weapon . | . . . Piercing Weapon . | . . . Special Melee Weapon . | . . . Unidentified Prototypes . | . . . Parts Lost 3 | . . 3 Power 1 | . . 1 Propulsion 2 | . . 2 Utility . | . . . Weapon . | . . . Highest Loss Streak 3 | . . 3 Average Slot Usage (%) 98 | . 99 94 Engine 13 | . 14 11 Wheel 27 | . 28 22 Device 2 | . 3 . Storage 14 | . 14 14 Processor 10 | . 9 14 Ballistic Cannon 19 | . 19 14 Launcher 8 | . 7 14 Naked Turns . | . . . Heaviest Build 39 | 9 39 37 Greatest Support 26 | 20 26 26 Greatest Overweight (x) 1 | . 1 1 Average Overweight (x) . | . . 1 Largest Inventory Capacity 12 | 6 12 12 Average Capacity 9 | 5 10 12 Most Carried 12 | 6 12 12 Average Carried 9 | 3 9 11 Final Capacity 12 | 6 12 12 Final Carried 12 | 6 12 11 Class Distribution -------------------- 100% | Mutant Dominant Class ---------------- Mutant | -10/Materials Mutant | -10/Mines Resources | -11 -10 -10 ----------- Run | Scr Mat Min Matter Collected 509 | 275 234 . Remotely . | . . . Salvage Created 504 | 108 370 26 Parts 37 | 4 26 7 Haulers Intercepted 2 | . 2 . Recyclers Shooed 1 | . . 1 Parts Field Recycled . | . . . Retrieved Matter . | . . . Parts Self-Destructed . | . . . Prevented . | . . . Kills | -11 -10 -10 ------- Run | Scr Mat Min Combat Hostiles Destroyed 12 | . 12 . Cannons 6 | . 6 . AOE 6 | . 6 . Classes Destroyed 9 | 2 7 . Builder 2 | . 1 1 Tunneler 2 | 1 . 1 Hauler 2 | . 2 . Recycler 2 | 1 1 . Mechanic 1 | . 1 . Operator 1 | . 1 . Watcher 2 | . 2 . Swarmer 9 | . 9 . Grunt 3 | . 3 . Best Kill Streak 5 | 2 5 2 Combat Bots Only 3 | . 3 . Max Kills in Single Turn 5 | 1 5 1 Gunslinging . | . . . Exploded 3 | . 3 . Melee . | . . . Uniques/NPCs Destroyed . | . . . Combat | -11 -10 -10 -------- Run | Scr Mat Min Damage Taken 642 | . 176 466 Core 272 | . 80 192 Absorbed by Shields . | . . . Core Remaining (%) 100 | 100 . . Volleys Fired 43 | 5 28 10 Largest 2 | 2 2 2 Hottest 70 | 60 70 65 Shots Fired 66 | 10 45 11 Gun 10 | 10 . . Cannon 52 | . 44 8 Launcher 4 | . 1 3 Special . | . . . Kinetic 57 | 5 44 8 Thermal 5 | 5 . . Explosive 4 | . 1 3 Electromagnetic . | . . . Robot Hit Streak 5 | 4 5 2 Robot Miss Streak 3 | 1 3 2 Penetration Max . | . . . Secondary Targets . | . . . Shots Hit Robots 34 | 8 21 5 Core Hits 33 | 3 20 10 Critical Hits . | . . . Critical Kills . | . . . Critical Parts Destroyed . | . . . Melee Attacks . | . . . Impact . | . . . Slashing . | . . . Piercing . | . . . Sneak Attacks . | . . . Combat Hostiles . | . . . Follow-up Attacks . | . . . Damage Inflicted 1591 | 85 1231 275 Guns 85 | 85 . . Cannons 437 | . 365 72 Explosions 1069 | . 866 203 Melee . | . . . Ramming . | . . . Kinetic 477 | 40 365 72 Thermal 780 | 45 735 . Explosive 334 | . 131 203 Electromagnetic . | . . . Impact . | . . . Slashing . | . . . Piercing . | . . . Highest Corruption . | . . . Average Corruption . | . . . Corruption Purged . | . . . Overload Shots . | . . . Overflow Damage 170 | . 170 . Projectiles 6 | . 6 . Explosions 164 | . 164 . Melee . | . . . Knockbacks 4 | . 3 1 Impact . | . . . Kinetic 4 | . 3 1 Secondary . | . . . Self-Inflicted Damage . | . . . Shots . | . . . Rammed . | . . . Targets Rammed . | . . . Kicked . | . . . Crushed . | . . . Highest Temperature 47 | 40 47 . Average Temperature 16 | 22 15 . Received Heat Transfer 60 | . 60 . Siege Activations . | . . . Robots Corrupted . | . . . Combat Hostiles . | . . . Parts Fried . | . . . Impact Corruptions . | . . . Robots Melted . | . . . Combat Hostiles . | . . . Parts Melted 2 | . 2 . Heat Transferred 550 | 100 450 . Parts Sabotaged . | . . . Parts Stolen . | . . . Parts Stripped . | . . . Power Chain Reactions . | . . . Missiles Intercepted . | . . . Alert | -11 -10 -10 ------- Run | Scr Mat Min Peak Influence 442 | 10 442 117 Average Influence 214 | 2 242 112 Maximum Alert Level 2 | . 2 . Low Security (%) 39 | 100 28 100 Level 1 50 | . 59 . Level 2 9 | . 11 . Level 3 . | . . . Level 4 . | . . . Level 5 . | . . . High Security . | . . . Max Security . | . . . Squads Dispatched 1 | . 1 . Investigation . | . . . Extermination . | . . . Reinforcement 1 | . 1 . Assault . | . . . Garrison . | . . . Intercept . | . . . Construction Impeded . | . . . Haulers Reinforced . | . . . Stealth | -11 -10 -10 --------- Run | Scr Mat Min Distress Signals 1 | . 1 . Communications Jammed . | . . . Distress Signals . | . . . Times Spotted 19 | . 17 2 Peak Tracking Total 5 | . 5 2 Tactical Retreats . | . . . Traps | -11 -10 -10 ------- Run | Scr Mat Min Traps Triggered . | . . . Indirectly . | . . . Trap Hack Attempts . | . . . Triggered . | . . . Disarmed 6 | . 6 . Reprogrammed . | . . . Reused . | . . . Traps Extracted . | . . . Installed . | . . . Triggered . | . . . Machines | -11 -10 -10 ---------- Run | Scr Mat Min Machines Disabled 14 | . 14 . Max in Single Turn 12 | . 12 . Machines Sabotaged . | . . . Garrisons Compromised . | . . . Overloaded Fab Kills . | . . . Fab Network Shutdowns . | . . . Hacking | -11 -10 -10 --------- Run | Scr Mat Min Machines Accessed 9 | . 9 . Terminals 6 | . 6 . Fabricators . | . . . Repair Stations 1 | . 1 . Recycling Units 2 | . 2 . Scanalyzers . | . . . Garrison Access . | . . . Total Hacks 31 | . 31 . Successful 23 | . 23 . Failed 8 | . 8 . Catastrophic . | . . . Database Lockouts . | . . . Manual 16 | . 16 . Terminals 21 | . 21 . Fabricators . | . . . Repair Stations 3 | . 3 . Recycling Units 7 | . 7 . Scanalyzers . | . . . Garrison Access . | . . . Terminal Hacks 6 | . 6 . Emergency Access Points 1 | . 1 . Locate Traps 2 | . 2 . Disarm Traps 1 | . 1 . Hauler Manifests 1 | . 1 . Zone Layout 1 | . 1 . Fabricator Hacks . | . . . Repair Station Hacks 3 | . 3 . Scan Component 1 | . 1 . Repair 1 | . 1 . Refit 1 | . 1 . Recycling Unit Hacks 4 | . 4 . Report Inventory 2 | . 2 . Retrieve Components 2 | . 2 . Scanalyzer . | . . . Garrison Access Hacks . | . . . Unauthorized Hacks 25 | . 25 . Terminals 8 | . 8 . Track 2 | . 2 . Botnet 5 | . 5 . Operators 1 | . 1 . Fabricators . | . . . Repair Stations . | . . . Recycling Units 2 | . 2 . Reject 1 | . 1 . Mask 1 | . 1 . Scanalyzers . | . . . Garrison Access . | . . . Data Cores Recovered . | . . . Used . | . . . Hacking Detections 6 | . 6 . Full Trace Events . | . . . Feedback Events . | . . . Feedback Blocked . | . . . Robot Schematics Acquired . | . . . Robots Built . | . . . Matter . | . . . Time . | . . . Total Robot Build Rating . | . . . Part Schematics Acquired . | . . . Parts Built . | . . . Matter . | . . . Time . | . . . Total Part Build Rating . | . . . Parts Repaired 1 | . 1 . Time 26 | . 26 . Parts Recycled . | . . . Recycled Matter . | . . . Retrieved Matter . | . . . Retrieved Components 16 | . 16 . Parts Scanalyzed . | . . . Part Schematics Acquired . | . . . Parts Damaged . | . . . Bothacking | -11 -10 -10 ------------ Run | Scr Mat Min Used RIF Installer . | . . . Robots Hacked . | . . . Non-combat . | . . . Combat . | . . . Robot Hacks Applied . | . . . Relay Couplers Released . | . . . Robots Rewired . | . . . Allies Hacked . | . . . Hacks Repelled . | . . . Allies | -11 -10 -10 -------- Run | Scr Mat Min Total Allies . | . . . Largest Group . | . . . Highest-Rated Group . | . . . Highest-Rated Ally . | . . . Total Orders . | . . . Ally Attacks . | . . . Total Damage . | . . . Kills . | . . . Allies Corrupted . | . . . Allies Melted . | . . . Intel | -11 -10 -10 ------- Run | Scr Mat Min Robot Analysis Total . | . . . Derelict Logs Recovered . | . . . Drone Launches . | . . . Drone Recoveries . | . . . Exploration | -11 -10 -10 ------------- Run | Scr Mat Min Turns Passed 1100 | 73 926 101 Spaces Moved 934 | 52 818 64 Core 4 | 4 . . Treads 2 | . . 2 Legs . | . . . Wheels 928 | 48 818 62 Hover . | . . . Flight . | . . . Fastest Speed 50 | 50 80 100 Average Speed 90 | 77 90 102 Slowest Speed 180 | 80 100 180 Overloaded Moves . | . . . Propulsion Burnouts . | . . . Robots Hopped . | . . . Cave-ins Triggered . | . . . Exploration Rate (%) 43 | 4 99 26 Regions Visited 2 Branch Regions 1 Pre-discovered Areas . | . . . Known Exits Taken . | . . . Unknown Exits Taken 2 | 1 1 . Scrap Searched . | . . . Spaces Dug . | . . . Terrain Destroyed 35 | . 22 13 Melee . | . . . Projectile . | . . . AOE 35 | . 22 13 Actions | -11 -10 -10 --------- Run | Scr Mat Min Total 1123 | 73 961 89 Wait 87 | . 73 14 Move 932 | 51 817 64 Hop . | . . . Pick Up 19 | 7 12 . Fast Attach 13 | 7 6 . Attach 1 | . . 1 Detach 1 | 1 . . Swap 8 | . 8 . Drop 19 | 2 17 . Fire 43 | 5 28 10 Melee . | . . . Ram . | . . . Kick . | . . . Crush . | . . . Escape Stasis . | . . . Rewire . | . . . Trap . | . . . Miscellaneous . | . . . Route ------- -11/Scrapyard -10/Materials (discovered 4 exits: [*Mat x3] / [*Min]) -10/Mines History --------- Turn | Location | Event 22 | -11/Scrapyard | Discovered new exit (range 15) 74 | -11/Scrapyard | Entered Materials 313 | -10/Materials | Build established: Mutant 483 | -10/Materials | Discovered new exit (range 5) 654 | -10/Materials | Discovered new exit (range 6) 816 | -10/Materials | Discovered new exit (range 11) 840 | -10/Materials | Discovered new exit (range 13) 936 | -10/Materials | Repaired Lgt. Cannon 1000 | -10/Materials | Entered Mines 1001 | -10/Mines | Assembled infested the area 1006 | -10/Mines | Assisted by a Guerilla fighting off Assembled 1085 | -10/Mines | Core integrity fell below 50% 1100 | -10/Mines | Core integrity fell below 20% 1101 | -10/Mines | Destroyed by D-53 Grenadier with Mini Grenade Launcher Last Messages --------------- 01078_ U-05 Engineer lays Concrete. 01080_ Backup Power I destroyed. 01080_ K-01 Serf destroyed. 01080_ U-05 Engineer builds a Wall. 01083_ The unstable cave ceiling collapses. 01085_ U-05 Engineer builds a Wall. 01086_ Com. Wheel destroyed. 01086_ Wheel destroyed. 01086_ U-05 Engineer destroyed. 01088_ U-05 Engineer builds a Wall. 01091_ D-53 Grenadier knocked back. 01092_ The unstable cave ceiling collapses. 01092_ D-53 Grenadier reactivates. 01092_ U-05 Engineer lays Concrete. 01094_ U-05 Engineer builds a Wall. 01095_ U-05 Engineer destroyed. 01096_ The unstable cave ceiling collapses. 01097_ R-06 Scavenger collects Terrain Scan Processor. 01098_ T-07 Excavator destroyed. 01101_ The unstable cave ceiling collapses. Map ----- +----------------------------------------------------+ | ?????????????????????????????????????????????? | | ?????????????????????????????????????????????? | | ?????????????????????????????????????????????? | | ?????????????????????????????????????????????? | | ?????????????????????????????????????????????? | | ?????????????????????????????????????????????? | | ?????????????????????????????????????????????? | | ?????????????????????????????????????????????? | | ?????????????????????????????????????????????? | | ?????????????????????????????????????????????? | | ??????????????????????? ????????????????????? | | ????????????????????? ????????????????????? | | ?????????????????????? ????????????????????? | | ?????????????????????? ????????????????????? | | ?????????????????????? ""??????????????????? | | ?????????????????????? """?????????????????? | | ??????????????????????# """?????????????????? | | ??????????????????????# ?????????????????? | | ??????????????????????# ??????????????????? | | ?????????????????????## ??????????????????? | | ????????????????????## ###????????????????? | | ????#??#??????##????# ##???????????????? | | ???## ## ### ###?# ##??????????????? | | ??## # * ## #??????????????? | | ??# ## %= # ##??????????????? | | ? != d @ #??????????????? | | ? r d #??????????????? | | ? " #??????????????? | | ? "%" ## % #??????????????? | | ???# # #?????????????? | | ????# #????????? | | ???# ? #### # #???????? | | ????????????# # # ### ????????? | | ????????????##% # ####??##### ???????? | | ?????????????# ##### #??????????# #???????? | | ?????????????# ###### #????????????##????????? | | ?????????????# ## #??????????????????????? | | ?????????????# ## #####??????????????????????? | | ?????????????# ## #??????????????????????????? | | ???????####### #??????????????????????????? | | ???????# ####??????????????????????????? | | ???????# ##### ############??????????????????? | | ??????????# #???????????????? | | ??????????# """ """ """ """ ?#???????????????? | | ??????????# """ """ """ """ #???????????????? | | ??????????# """ """ """ """ #???????????????? | | ??????????# #???????????????? | | ??????????# """ """ """ """ #???????????????? | | ??????????# """ """ """ """ #???????????????? | | ??????????# """ """ """ """ #???????????????? | +----------------------------------------------------+ Best States ------------- Heat Dissipation 25 Energy Generation 10 Energy Capacity 125 Matter Stores 300 Matter Capacity 300 Sight Range 16 Robot Scan Range 10 Terrain Scan Density 10 Core Shielding 20 Evasion (%) 44 Targeting Accuracy 5 Recoil Reduction 1 Item Schematics ----------------- None Robot Schematics ------------------ None Fabricated ------------ Nothing Alien Tech Used ----------------- None Achievements -------------- None Challenges ------------ None Game ------ Seed SwarmFissionTriangulator Manual? 0 Play Time 00:15:54 Cumulative 103.0 hours Start 2020.04.04 @ 00:42:33 End 2020.04.04 @ 00:58:31 Sessions 1 Manual Loads 0 Difficulty Rogue Special Mode None Game No. 35 Rogue 35 Adventurer 0 Explorer 0 Win Type - Total 1 Types 1/0/0/0/0/0/0 Lore% 49 Gallery% 61 Achievement% 58 Wizard Run 0 Options --------- ASCII 1 Keyboard 1 Movement Numpad Keybinds 0 Fullscreen 1 Font 16/SmallcapsGlow Map View 75x55 Tactical HUD 1 Map Filters NONE Filters NONE Steam 1 RUN: b6d504cb-fc42-4cb8-8931-a1f1a3f08842